bitfinex/quotes_ETHUSD_20240828
["timestamp","ask_amount","ask_price","bid_price","bid_amount"]
[1724853420628,3.98668,2508.4,2508.1,22.26292139]
[1724853420939,3.98678,2508.3,2508.1,22.26292139]
[1724853421151,3.98692,2508.2,2508.1,19.92732139]
[1724853421597,3.98677,2508.3,2508.1,19.92732139]
[1724853421805,3.98655,2508.5,2508.1,19.92732139]
[1724853422001,3.98676,2508.3,2508.1,19.92732139]
[1724853422248,3.0,2508.6,2508.1,19.92732139]
[1724853422414,3.0,2508.6,2508.2,0.07973451]
[1724853422762,3.98654,2508.5,2508.3,2.51091039]
[1724853422904,3.0,2508.6,2508.3,2.51091039]
[1724853423102,3.98644,2508.5,2508.3,2.51091039]
[1724853424044,3.9866,2508.4,2508.3,2.51091039]
[1724853424367,3.98644,2508.5,2508.3,0.09721039]
[1724853424648,3.9866,2508.4,2508.3,0.09721039]
[1724853425160,1.097304,2508.4,2507.4,3.98811]
[1724853425360,5.2954,2508.3,2507.4,2.4286]
[1724853425665,7.97501,2507.9,2507.4,2.4286]
[1724853425950,3.9875,2507.9,2507.4,2.4286]
[1724853426624,3.98772,2507.7,2507.4,2.4286]
[1724853426826,3.98802,2507.6,2506.9,2.4923]
[1724853427069,3.98814,2507.5,2506.9,2.4923]
[1724853427256,3.98802,2507.6,2506.9,2.4923]
[1724853427561,3.98802,2507.6,2507.0,0.07976208]
[1724853427562,3.98799,2507.6,2507.0,0.07976208]
[1724853427717,3.98764,2507.8,2507.2,2.4923]
[1724853427907,3.98791,2507.6,2507.2,2.5720576]
[1724853428258,3.98791,2507.6,2507.2,2.4923]
[1724853428558,7.97591,2507.6,2507.2,2.4923]
[1724853428727,3.98832,2507.4,2507.2,2.4923]
[1724853429513,7.97666,2507.4,2507.2,2.4923]
[1724853429854,3.98832,2507.4,2507.2,2.4923]
[1724853430025,3.98831,2507.4,2507.2,2.4923]
[1724853430226,3.9883,2507.4,2507.2,2.4923]
[1724853430548,3.98835,2507.3,2507.2,2.4923]
[1724853430859,3.9883,2507.4,2507.2,2.4923]
[1724853431555,3.98812,2507.5,2507.2,2.4923]
[1724853431714,3.98761,2507.8,2507.3,0.07975258]
[1724853431913,3.98799,2507.6,2507.3,0.28212826]
[1724853432122,3.98799,2507.6,2507.2,2.4923]
[1724853432325,3.98764,2507.8,2507.3,19.56]
[1724853432326,7.97533,2507.8,2507.3,19.56]
[1724853432526,0.05,2509.5,2507.6,2.2888]
[1724853432527,3.98704,2508.2,2507.6,2.2888]
[1724853432731,3.98632,2508.6,2507.7,0.62768]
[1724853432732,3.98741,2507.9,2507.7,0.62768]
[1724853432944,3.98756,2507.8,2507.6,2.2888]
[1724853433138,3.98671,2508.4,2507.2,3.43726306]
[1724853433139,3.98671,2508.4,2507.2,2.2888]
[1724853433140,3.98844,2507.3,2507.2,2.2888]
[1724853433339,7.97688,2507.3,2507.2,2.2888]
[1724853433554,3.98776,2507.7,2507.1,19.56]
[1724853433555,7.97702,2507.2,2507.1,19.56]
[1724853435275,3.0,2507.6,2506.9,2.2888]
[1724853435276,7.97753,2507.1,2506.9,2.2888]
[1724853435458,3.98877,2507.1,2506.9,2.51768]
[1724853435973,3.0,2507.8,2506.9,2.2888]
[1724853435974,7.97766,2507.0,2506.9,2.2888]
[1724853436156,7.97766,2507.0,2506.9,19.56]
[1724853436474,3.9893,2506.7,2506.6,2.4214]
[1724853436675,3.0,2507.5,2506.5,19.56]
[1724853436676,3.0,2507.5,2506.8,2.3177]
[1724853436830,3.0,2507.5,2506.9,0.23177]
[1724853436831,3.98884,2507.0,2506.9,0.23177]
[1724853437031,3.98884,2507.0,2506.8,2.3177]
[1724853437332,3.0,2507.8,2506.8,2.3177]
[1724853437333,3.98899,2506.9,2506.8,2.3177]
[1724853437640,3.98863,2507.2,2506.8,22.10947]
[1724853437872,6.98779,2507.7,2506.8,22.10947]
[1724853437873,3.98792,2507.6,2507.0,6.33814]
[1724853438080,7.97533,2507.8,2507.2,2.3494]
[1724853438368,3.98762,2507.8,2507.3,0.07975302]
[1724853438570,3.98789,2507.6,2507.3,0.07975302]
[1724853438933,3.98815,2507.5,2507.2,2.3494]
[1724853439156,3.98789,2507.6,2507.3,0.07975698]
[1724853439373,3.98805,2507.5,2507.2,2.3494]
[1724853439781,3.98781,2507.7,2507.3,0.07975971]
[1724853440001,3.98764,2507.8,2507.3,0.07975971]
[1724853440147,3.98732,2508.0,2507.4,19.56]
[1724853440347,3.98732,2508.0,2507.5,2.3055]
[1724853440574,3.98698,2508.2,2507.5,6.29351]
[1724853440778,6.25349,2508.8,2507.8,2.3055]
[1724853440779,3.98611,2508.8,2507.8,2.3055]
[1724853441081,3.98661,2508.4,2508.0,2.3055]
[1724853441248,3.98633,2508.6,2508.1,0.07973013]
[1724853441442,3.98633,2508.6,2508.1,0.37321213]
[1724853441638,3.98633,2508.6,2508.1,0.293482]
[1724853441857,3.98633,2508.6,2508.1,0.37321004]
[1724853442052,3.98605,2508.8,2508.2,2.3055]
[1724853442288,3.98613,2508.7,2508.3,0.0797223]
[1724853442459,3.98662,2508.4,2508.2,2.3055]
[1724853442658,3.98676,2508.3,2508.2,2.53605]
[1724853442845,3.98625,2508.7,2508.2,2.53605]
[1724853443049,3.98625,2508.7,2508.3,0.33332861]
[1724853443241,3.98629,2508.6,2508.3,0.33332861]
[1724853443445,3.98625,2508.7,2508.3,0.253605]
[1724853443746,3.98625,2508.7,2508.3,0.33332864]
[1724853444398,3.98662,2508.4,2508.2,2.3055]
[1724853444588,3.98676,2508.3,2508.2,2.3055]
[1724853444945,6.48436,2508.3,2507.0,2.2621]
[1724853445157,3.98813,2507.5,2507.0,2.2621]
[1724853445568,4.37335136,2508.2,2507.1,0.09832448]
[1724853445770,3.98851,2507.2,2507.1,0.09832448]
[1724853445953,7.97702,2507.2,2507.1,0.09832448]
[1724853446153,3.98914,2506.8,2506.7,2.2621]
[1724853446384,3.9884,2507.3,2506.1,2.3268]
[1724853446557,3.98947,2506.6,2506.1,2.3268]
[1724853446754,7.97906,2506.6,2506.1,2.3268]
[1724853446959,3.84195453,2508.1,2506.3,2.3268]
[1724853447240,3.9883,2507.4,2506.8,2.3268]
[1724853447509,6.98727,2508.0,2506.8,2.3268]
[1724853447510,3.98893,2507.0,2506.8,2.3268]
[1724853447708,6.26958,2507.5,2506.2,2.3268]
[1724853447912,3.98865,2507.2,2506.3,0.6715998]
[1724853448128,3.98924,2506.8,2506.3,0.6715998]
[1724853448325,3.98899,2506.9,2506.3,0.6715998]
[1724853448503,3.98876,2507.1,2506.5,2.3591]
[1724853448816,3.98901,2506.9,2506.5,2.43887676]
[1724853449033,3.98874,2507.1,2506.6,0.27387167]
[1724853449177,3.98845,2507.3,2506.6,0.27387167]
[1724853449178,3.98787,2507.6,2506.6,0.27387167]
[1724853449377,3.9876,2507.8,2506.6,0.27387167]
[1724853449378,3.98898,2507.0,2506.6,0.27387167]
[1724853449772,3.98898,2507.0,2506.5,2.3591]
[1724853450179,3.9894,2506.7,2506.5,2.3591]
[1724853450876,7.9782,2506.9,2506.5,2.3591]
[1724853451081,3.98916,2506.8,2506.5,2.3591]
[1724853451305,3.98946,2506.6,2506.5,2.3591]
[1724853451884,3.98946,2506.6,2506.0,19.56]
[1724853451885,3.98999,2506.3,2506.0,21.9666]
[1724853452303,3.99026,2506.1,2506.0,21.9666]
[1724853452518,7.98002,2506.3,2506.0,21.9666]
[1724853452816,3.98999,2506.3,2506.0,21.9666]
[1724853453119,3.99026,2506.1,2506.0,21.9666]
[1724853453320,7.98052,2506.1,2506.0,19.56]
[1724853454025,7.98052,2506.1,2506.0,0.09682816]
[1724853454525,7.98052,2506.1,2503.5,2.91964093]
[1724853454526,11.97891,2504.4,2503.5,2.91964093]
[1724853454692,11.97891,2504.4,2502.5,8.80951757]
[1724853454693,3.99517,2503.1,2502.4,3.24789765]
[1724853454883,3.99478,2503.3,2502.6,3.99572]
[1724853455082,3.9942,2503.7,2502.7,2.82196215]
[1724853455277,3.99384,2503.9,2503.0,3.99507]
[1724853455278,3.99394,2503.8,2503.0,3.99507]
[1724853455491,3.0,2504.3,2503.2,2.4144]
[1724853455690,3.99253,2504.7,2503.2,2.4144]
[1724853455691,3.99374,2504.0,2503.2,2.4144]
[1724853455904,3.99253,2504.7,2502.7,2.4953]
[1724853455905,0.399374,2503.9,2502.7,2.4953]
[1724853456093,3.99461,2503.4,2502.7,2.4953]
[1724853456380,3.99502,2503.2,2502.7,2.4953]
[1724853456578,3.99541,2502.9,2502.7,2.4953]
[1724853456926,5.243234,2503.9,2502.7,2.4953]
[1724853456927,3.99511,2503.1,2502.7,2.4953]
[1724853457228,0.699374,2503.9,2502.8,0.24953]
[1724853457229,3.9944,2503.5,2502.8,0.24953]
[1724853457408,3.99552,2502.8,2501.8,2.4953]
[1724853457614,0.4295,2503.8,2501.8,2.93120128]
[1724853457615,3.99627,2502.4,2501.8,2.93120128]
[1724853457793,3.99633,2502.3,2501.8,2.93120128]
[1724853458124,3.99533,2503.0,2501.8,2.4953]
[1724853458125,0.4295,2503.0,2501.8,2.4953]
[1724853458279,3.99657,2502.2,2501.8,2.4953]
[1724853458479,0.4295,2503.0,2501.8,2.4953]
[1724853458480,3.996,2502.5,2501.8,2.4953]
[1724853458709,3.99653,2502.2,2501.8,2.4953]
[1724853458910,7.99251,2502.4,2501.8,2.4953]
[1724853459080,3.99591,2502.6,2501.8,2.4953]
[1724853459281,3.99633,2502.3,2501.8,2.4953]
[1724853459733,3.0,2502.8,2501.8,2.4953]
[1724853459937,3.99457,2503.4,2502.2,3.99647]
[1724853459938,3.99541,2502.9,2502.2,3.99647]
[1724853460103,3.99541,2502.9,2501.9,0.079927]
[1724853460104,3.99515,2503.1,2502.5,3.99599]
[1724853460308,3.99515,2503.1,2501.9,3.9969]
[1724853460309,3.99515,2503.1,2502.4,7.99209]
[1724853460506,3.99355,2504.1,2502.7,6.40767]
[1724853460507,3.99438,2503.6,2502.7,6.40767]
[1724853460708,0.4295,2504.4,2503.0,3.99518]
[1724853460709,4.393065,2504.0,2503.0,3.99518]
[1724853460949,3.99239,2504.8,2502.8,0.6500473]
[1724853460950,3.99328,2504.3,2503.5,2.412]
[1724853461095,3.99328,2504.3,2503.5,2.49187927]
[1724853461293,3.99285,2504.5,2503.5,2.49187927]
[1724853461294,3.99298,2504.4,2503.6,3.99414]
[1724853461490,3.99307,2504.4,2503.6,4.08636573]
[1724853461932,3.99307,2504.4,2503.8,3.99392]
[1724853461933,3.99298,2504.4,2503.8,3.99392]
[1724853462117,3.99285,2504.5,2503.9,0.47925857]
[1724853462338,0.399145,2505.3,2504.0,0.09465045]
[1724853462339,3.99223,2504.9,2504.0,0.09465045]
[1724853462556,0.399145,2505.3,2504.0,0.09465045]
[1724853462557,11.98035,2504.1,2504.0,0.09465045]
[1724853462714,3.99379,2503.9,2503.5,2.412]
[1724853462917,3.99379,2503.9,2503.6,0.09436385]
[1724853463256,7.98816,2503.7,2503.6,0.09436385]
[1724853463428,11.98224,2503.7,2503.6,0.09436385]
[1724853463752,3.9961,2502.5,2502.2,2.4581]
[1724853463942,3.99632,2502.3,2501.7,2.4581]
[1724853464154,3.99669,2502.1,2501.7,2.4581]
[1724853464318,3.99608,2502.5,2501.8,3.99712]
[1724853464513,3.99608,2502.5,2501.9,0.07992809]
[1724853464861,3.99608,2502.5,2501.7,6.45527]
[1724853465149,3.99608,2502.5,2501.7,11.497701]
[1724853465361,3.99577,2502.7,2501.9,3.9969]
[1724853465559,6.9954,2502.9,2502.0,0.07992247]
[1724853465715,1.748224,2503.6,2502.1,6.40637]
[1724853465917,3.99553,2502.8,2502.2,0.07991838]
[1724853466228,3.9952,2503.0,2502.1,6.40633]
[1724853466229,7.99054,2503.0,2502.3,3.99619]
[1724853466615,3.9952,2503.0,2502.3,3.99619]
[1724853466820,3.99523,2503.0,2502.4,0.07991353]
[1724853467052,0.79901,2503.0,2502.4,4.07595353]
[1724853467229,0.79901,2503.0,2502.1,7.047003]
[1724853467416,3.99467,2503.4,2502.6,3.9957]
[1724853467627,0.399379,2503.9,2502.8,2.4098]
[1724853467959,3.99516,2503.1,2502.8,2.4098]
[1724853468160,3.99536,2502.9,2502.8,2.4098]
[1724853468453,0.43249724,2503.8,2502.2,2.4098]
[1724853468454,3.99556,2502.8,2502.2,2.4098]
[1724853468865,3.99569,2502.7,2502.2,2.4098]
[1724853469227,3.99556,2502.8,2502.2,2.4098]
[1724853469459,3.99587,2502.6,2502.2,2.4098]
[1724853469624,3.99469,2503.4,2502.2,2.4098]
[1724853469625,3.99632,2502.3,2502.2,2.4098]
[1724853469839,6.99513,2503.1,2501.8,2.4098]
[1724853469840,3.99592,2502.6,2501.8,2.4098]
[1724853470059,3.99507,2503.1,2501.8,2.4098]
[1724853470060,3.99641,2502.3,2501.8,2.4098]
[1724853470241,3.99675,2502.1,2501.8,2.4098]
[1724853470428,3.16215051,2502.1,2501.8,2.4098]
[1724853470627,3.99639,2502.3,2501.8,2.4098]
[1724853470829,3.99676,2502.1,2501.8,2.4098]
[1724853471079,0.399638,2502.3,2501.8,2.4098]
[1724853471375,3.99633,2502.3,2501.8,2.4098]
[1724853471527,3.99645,2502.3,2501.8,2.4098]
[1724853471724,3.0,2503.0,2501.8,2.4098]
[1724853471725,3.99601,2502.5,2501.8,6.40689]
[1724853471973,3.99574,2502.7,2502.0,3.99668]
[1724853472128,4.29543,2502.9,2501.8,6.4068]
[1724853472129,3.3,2502.9,2501.8,6.4068]
[1724853472328,3.99626,2502.4,2501.8,2.4098]
[1724853472658,0.429543,2502.8,2501.8,2.4098]
[1724853472659,3.9959,2502.6,2501.8,2.4098]
[1724853472841,3.9959,2502.6,2501.8,6.64782]
[1724853473031,3.99619,2502.4,2501.8,6.64782]
[1724853473376,3.99619,2502.4,2501.9,3.99695]
[1724853473533,4.425133,2502.8,2502.2,3.99637]
[1724853473733,3.99541,2502.9,2502.2,3.99637]
[1724853473954,3.99465,2503.4,2501.8,6.40686]
[1724853473955,3.99466,2503.4,2501.8,6.40686]
[1724853474172,3.99601,2502.5,2501.8,6.40686]
[1724853474371,3.99649,2502.2,2501.8,2.4098]
[1724853474560,3.99616,2502.4,2501.8,2.4098]
[1724853474940,3.99632,2502.3,2501.8,2.4098]
[1724853475148,3.99616,2502.4,2501.8,2.4098]
[1724853475379,4.395776,2502.4,2501.8,2.4098]
[1724853475533,3.99642,2502.3,2501.9,0.09350106]
[1724853475876,0.399616,2502.4,2501.9,0.09350106]
[1724853476075,3.99604,2502.5,2501.3,6.27317]
[1724853476230,3.55,2502.7,2502.0,0.09344529]
[1724853476432,3.99664,2502.1,2501.4,3.99763]
[1724853476631,3.99618,2502.4,2502.1,0.09379218]
[1724853476877,3.99602,2502.5,2502.0,2.2754]
[1724853477064,1.0992,2502.5,2502.2,0.09388081]
[1724853477233,1.0992,2502.5,2502.1,0.09393657]
[1724853477435,0.828965,2503.3,2502.4,3.99607]
[1724853477436,3.99514,2503.1,2502.4,3.99607]
[1724853477777,3.99538,2502.9,2502.5,0.09371354]
[1724853477935,4.794432,2502.9,2502.5,0.09371354]
[1724853478276,4.794432,2502.9,2502.0,2.2754]
[1724853478277,3.99538,2502.9,2502.3,3.99617]
[1724853478579,3.99538,2502.9,2502.4,0.09351092]
[1724853478580,3.99544,2502.9,2502.4,0.09351092]
[1724853478878,3.995,2503.2,2502.4,3.99615]
[1724853479087,3.995,2503.2,2500.6,0.05]
[1724853479088,0.45945115,2503.9,2502.6,2.3725]
[1724853479233,3.9943,2503.6,2502.7,0.07990849]
[1724853479435,7.98865,2503.6,2503.0,3.99507]
[1724853479748,3.9943,2503.6,2503.1,0.09297641]
[1724853479948,3.99458,2503.4,2503.1,0.09297641]
[1724853480164,0.45945115,2504.3,2502.6,2.3725]
[1724853480336,3.99488,2503.3,2503.2,0.09260927]
[1724853480532,3.99563,2502.8,2502.2,2.3725]
[1724853480833,0.4295,2503.7,2502.2,2.3725]
[1724853480834,0.43249724,2503.6,2502.2,2.3725]
[1724853481029,3.99618,2502.4,2502.2,2.3725]
[1724853481279,3.99592,2502.6,2502.2,2.3725]
[1724853481444,3.9961,2502.5,2502.2,2.3725]
[1724853481852,3.99616,2502.4,2502.2,2.3725]
[1724853482181,3.99616,2502.4,2501.4,0.22754]
[1724853482182,3.99632,2502.3,2501.7,2.3443]
[1724853482489,3.99648,2502.2,2501.7,2.3443]
[1724853482779,0.399592,2502.5,2501.7,2.3443]
[1724853482780,3.99683,2502.0,2501.7,2.3443]
[1724853482990,3.99624,2502.4,2501.8,4.07696637]
[1724853483134,3.99624,2502.4,2501.8,8.07399637]
[1724853483334,3.99605,2502.5,2501.7,2.3443]
[1724853483596,3.99707,2501.9,2500.5,3.99912]
[1724853483749,3.0,2502.4,2500.5,3.99912]
[1724853483750,3.99795,2501.3,2500.7,3.99886]
[1724853483934,3.99824,2501.1,2500.6,2.2795]
[1724853484130,3.0,2501.8,2500.6,2.2795]
[1724853484346,3.99874,2500.8,2500.6,2.2795]
[1724853484573,3.99888,2500.7,2500.0,51.3]
[1724853484839,3.0,2501.4,2500.1,2.2795]
[1724853484840,3.9994,2500.4,2500.1,2.2795]
[1724853484991,3.99905,2500.6,2500.1,2.2795]
[1724853485318,3.99857,2500.9,2500.1,2.2795]
[1724853485522,3.0,2501.3,2500.2,4.09491896]
[1724853485731,3.9986,2500.9,2500.2,8.01447556]
[1724853486034,3.99886,2500.8,2500.1,2.2795]
[1724853486177,3.0,2501.1,2500.1,2.2795]
[1724853486376,4.46623391,2501.9,2500.1,2.2795]
[1724853486377,3.99906,2500.6,2500.1,2.2795]
[1724853486622,3.46916391,2501.8,2500.1,2.2795]
[1724853486623,3.9992,2500.5,2500.1,2.2795]
[1724853486820,3.99872,2500.8,2500.2,0.07999682]
[1724853486977,3.99858,2500.9,2500.2,8.01460556]
[1724853487178,3.99927,2500.5,2500.1,2.2795]
[1724853487791,3.9984,2501.0,2500.0,51.3]
[1724853487976,3.99965,2500.3,2500.0,51.3]
[1724853488180,3.99937,2500.4,2500.0,51.3]
[1724853488373,3.0,2500.9,2500.0,51.3]
[1724853488619,3.99828,2501.1,2500.4,2.4897]
[1724853488993,7.87331339,2501.8,2500.7,3.99874]
[1724853488994,0.44662339,2501.8,2500.7,3.99874]
[1724853489193,3.99843,2501.0,2500.4,2.4897]
[1724853489425,3.99768,2501.5,2500.7,3.99875]
[1724853489632,3.99777,2501.4,2500.8,0.799765]
[1724853489927,3.99796,2501.3,2500.7,3.99885]
[1724853490129,3.99702,2501.9,2500.4,2.4897]
[1724853490130,3.99836,2501.1,2500.4,2.4897]
[1724853490281,3.99867,2500.9,2500.4,2.4897]
[1724853490617,3.99825,2501.1,2500.5,0.09332563]
[1724853490818,3.99827,2501.1,2500.5,0.35962628]
[1724853491130,3.99861,2500.9,2500.5,0.09332563]
[1724853491480,3.0,2501.5,2500.5,0.09332563]
[1724853491481,3.99828,2501.1,2500.5,0.09332563]
[1724853491681,3.99868,2500.9,2500.5,0.09332563]
[1724853491926,3.99883,2500.8,2500.5,0.09332563]
[1724853492231,3.99904,2500.6,2500.5,0.09332563]
[1724853492403,4.398944,2500.6,2500.5,0.09332563]
[1724853492727,3.99904,2500.6,2500.5,0.09332563]
[1724853493485,3.0,2501.1,2500.0,51.3]
[1724853493486,3.99984,2500.1,2500.0,51.3]
[1724853493722,7.99968,2500.1,2500.0,51.3]
[1724853494050,12.799488,2500.1,2500.0,51.3]
[1724853494191,15.799488,2500.1,2500.0,51.3]
[1724853494697,11.799648,2500.1,2500.0,51.3]
[1724853494931,3.99959,2500.3,2500.0,51.3]
[1724853495423,3.99963,2500.3,2500.1,2.3975]
[1724853496024,3.99968,2500.2,2500.1,2.3975]
[1724853496532,7.99968,2500.1,2500.0,51.3]
[1724853496903,14.99952,2500.1,2500.0,51.3]
[1724853497551,19.54936,2500.1,2500.0,41.3]
[1724853497851,19.54936,2500.1,2500.0,26.97763325]
[1724853497852,41.88430355,2500.1,2500.0,26.97763325]
[1724853498132,21.5442928,2500.1,2500.0,26.59320124]
[1724853498342,29.61033319,2500.1,2500.0,22.59320124]
[1724853498489,34.18766119,2500.1,2500.0,16.48320124]
[1724853498685,34.18766119,2500.1,2500.0,15.70337075]
[1724853498892,38.80216119,2500.1,2500.0,15.70337075]
[1724853499156,38.80216119,2500.1,2500.0,15.03758275]
[1724853499157,35.04939419,2500.1,2500.0,15.03758275]
[1724853499306,35.04939419,2500.1,2500.0,2.52098423]
[1724853499307,29.25483271,2500.1,2500.0,2.52098423]
[1724853499507,29.25483271,2500.1,2498.4,4.00253]
[1724853499508,4.32717714,2500.1,2498.4,4.00253]
[1724853499826,3.0,2500.0,2498.5,0.09542365]
[1724853500011,4.00084,2499.5,2498.6,2.3938]
[1724853500211,4.3989,2500.4,2498.7,0.24892237]
[1724853500212,0.3995,2500.4,2498.7,0.24892237]
[1724853500409,4.00065,2499.6,2498.7,0.34423417]
[1724853500614,0.51230582,2500.3,2498.7,0.34423417]
[1724853500615,4.00035,2499.8,2498.9,6.39542]
[1724853500843,4.00005,2500.0,2499.1,4.00135]
[1724853501142,4.00005,2500.0,2499.2,2.3938]
[1724853501434,0.51679079,2500.2,2499.2,2.48883227]
[1724853501640,4.0002,2499.9,2499.3,0.24888323]
[1724853501856,4.00034,2499.8,2499.2,2.48883227]
[1724853502147,8.0016,2499.5,2499.4,0.09492049]
[1724853502295,4.0005,2499.7,2498.9,2.2745]
[1724853502296,8.00192,2499.4,2499.3,0.09497637]
[1724853502496,4.00004,2500.0,2498.9,2.2745]
[1724853502497,8.0032,2499.0,2498.9,2.2745]
[1724853502731,4.0016,2499.0,2498.9,2.2745]
[1724853503035,4.00228,2498.6,2498.4,2.3248]
[1724853503240,4.00211,2498.7,2498.4,2.3248]
[1724853503451,4.00224,2498.6,2498.4,2.3248]
[1724853503660,3.0,2499.0,2498.5,0.09542365]
[1724853503661,4.00164,2499.0,2498.5,0.09542365]
[1724853503822,3.99865,2500.9,2498.4,2.55728]
[1724853503823,4.00132,2499.2,2498.4,2.55728]
[1724853504020,7.0004,2499.8,2498.6,0.09884472]
[1724853504021,4.00208,2498.7,2498.6,0.09884472]
[1724853504221,4.00193,2498.8,2498.5,0.09914459]
[1724853504433,4.00193,2498.8,2498.2,2.3248]
[1724853504434,4.00209,2498.7,2498.6,0.09908867]
[1724853504741,4.00193,2498.8,2498.3,0.23248]
[1724853504945,4.00193,2498.8,2498.4,0.09920052]
[1724853505150,4.00208,2498.7,2498.4,0.37285333]
[1724853505374,4.0024,2498.5,2498.4,0.09920052]
[1724853505518,12.0072,2498.5,2498.4,0.09920052]
[1724853505718,12.0072,2498.5,2497.0,4.00475]
[1724853505719,4.00336,2497.9,2497.8,2.3658]
[1724853506157,4.00336,2497.9,2497.2,2.44]
[1724853506473,3.0,2498.5,2497.2,2.44]
[1724853506474,4.00412,2497.5,2497.2,2.44]
[1724853506636,4.00412,2497.5,2497.3,0.09981604]
[1724853507163,4.00412,2497.5,2497.4,0.09976006]
[1724853507678,4.0031,2498.1,2497.4,2.4665]
[1724853507679,4.00309,2498.1,2497.4,2.4665]
[1724853507838,4.00367,2497.8,2497.4,2.56606837]
[1724853508034,4.00367,2497.8,2497.4,2.82072635]
[1724853508467,4.004,2497.5,2497.4,2.56606837]
[1724853508636,4.00398,2497.6,2497.4,2.56606837]
[1724853509039,8.00797,2497.6,2497.4,2.56606837]
[1724853509261,4.004,2497.5,2497.4,2.56606837]
[1724853509461,4.00398,2497.6,2497.4,2.56606837]
[1724853509737,4.00295,2498.2,2497.5,0.08008383]
[1724853509939,4.00306,2498.1,2497.5,0.08008383]
[1724853510166,4.00306,2498.1,2496.4,4.00569]
[1724853510167,4.00368,2497.7,2497.6,0.1001276]
[1724853510435,8.00736,2497.7,2497.6,0.1001276]
[1724853510637,4.00406,2497.5,2496.7,4.00528]
[1724853511117,4.00435,2497.3,2496.8,0.10140679]
[1724853511439,4.00572,2496.5,2496.1,0.75853]
[1724853511651,4.00596,2496.3,2495.6,4.00694]
[1724853511849,4.00711,2495.6,2494.1,0.06943081]
[1724853512047,4.00728,2495.5,2494.0,0.08016517]
[1724853512277,4.00728,2495.5,2493.1,0.6412276]
[1724853512278,4.01074,2493.3,2493.1,0.6412276]
[1724853512594,0.05,2495.7,2493.1,0.6412276]
[1724853512595,4.00923,2494.3,2493.1,0.01321981]
[1724853512876,4.00898,2494.4,2493.6,4.01024]
[1724853513088,4.00933,2494.2,2493.7,0.401024]
[1724853513236,3.0,2494.7,2493.5,2.36959415]
[1724853513438,3.0,2494.7,2493.6,0.22894]
[1724853513439,4.00892,2494.5,2493.6,0.22894]
[1724853513664,4.00943,2494.2,2493.6,0.22894]
[1724853514096,4.00834,2494.8,2493.8,2.4381]
[1724853514252,0.76843188,2494.7,2493.4,2.4381]
[1724853514450,4.00939,2494.2,2493.5,0.08021287]
[1724853514657,4.00911,2494.4,2493.6,4.01022]
[1724853514879,4.0084,2494.8,2493.9,4.00974]
[1724853515078,4.00869,2494.6,2494.2,2.4381]
[1724853515278,4.00883,2494.5,2493.3,2.4381]
[1724853515461,4.01058,2493.4,2493.3,2.4381]
[1724853515669,4.01017,2493.7,2493.3,2.68491]
[1724853515956,0.56975868,2494.5,2493.3,2.68491]
[1724853515957,4.00902,2494.4,2493.3,2.68491]
[1724853516264,3.0,2494.3,2493.3,2.4381]
[1724853516469,4.00844,2494.8,2493.6,2.4381]
[1724853516470,4.00855,2494.7,2493.6,2.4381]
[1724853516694,4.00858,2494.7,2493.7,3.13155905]
[1724853516896,4.00884,2494.5,2493.8,4.00993]
[1724853517053,4.00782,2495.2,2493.7,2.4381]
[1724853517054,0.50698507,2494.9,2493.7,2.4381]
[1724853517257,0.50698507,2495.2,2493.8,0.24381]
[1724853517501,4.00721,2495.5,2493.8,0.24381]
[1724853517502,4.00909,2494.4,2493.8,0.24381]
[1724853517794,4.00903,2494.4,2493.8,0.24381]
[1724853517949,4.00809,2495.0,2493.8,0.24381]
[1724853517950,4.00978,2494.0,2493.8,0.24381]
[1724853518154,4.00978,2494.0,2493.7,2.4381]
[1724853518155,4.00962,2494.0,2493.7,2.4381]
[1724853518382,4.0098,2493.9,2493.7,2.4381]
[1724853518585,4.00962,2494.0,2493.7,2.4381]
[1724853518791,0.05,2496.1,2493.7,2.4381]
[1724853518792,4.00864,2494.7,2493.9,4.00977]
[1724853519000,4.00862,2494.7,2493.9,0.0801875]
[1724853519160,4.0068,2495.8,2494.5,2.322]
[1724853519367,2.0,2498.1,2494.5,2.322]
[1724853519368,0.50698507,2496.0,2494.5,2.322]
[1724853519564,0.59812678,2496.7,2494.5,2.322]
[1724853519565,4.00818,2494.9,2494.5,2.322]
[1724853520002,4.00744,2495.4,2494.7,4.00839]
[1724853520200,4.00745,2495.4,2494.9,2.4397]
[1724853520498,0.47448507,2496.2,2494.9,2.4397]
[1724853520708,4.00572,2496.5,2495.0,0.08343542]
[1724853520709,4.00735,2495.5,2495.0,0.08343542]
[1724853520864,4.00764,2495.3,2495.0,0.08343542]
[1724853521060,4.00785,2495.1,2494.9,2.4397]
[1724853521476,8.01585,2495.1,2494.9,2.4397]
[1724853521705,4.48110507,2495.9,2494.9,2.4397]
[1724853521706,4.00801,2495.0,2494.9,2.4397]
[1724853522072,4.00797,2495.1,2494.9,2.4397]
[1724853522489,4.00757,2495.3,2494.9,2.4397]
[1724853522662,4.00786,2495.1,2494.9,2.4397]
[1724853523165,4.00757,2495.3,2494.9,2.4397]
[1724853523166,8.01602,2495.0,2494.9,2.4397]
[1724853523663,4.00916,2494.3,2493.2,0.03]
[1724853523893,4.00886,2494.5,2493.7,4.00995]
[1724853524065,4.00786,2495.1,2494.4,4.00884]
[1724853524403,4.00576,2496.4,2494.6,2.2865]
[1724853524404,7.0068,2495.8,2494.6,2.2865]
[1724853524610,4.00767,2495.3,2494.6,2.2865]
[1724853524791,4.00769,2495.2,2494.7,0.0801582]
[1724853525106,4.00792,2495.1,2494.6,2.2865]
[1724853525265,4.00831,2494.9,2494.6,2.2865]